Cogmind - Beta 15 @@@ ROGUE MODE // 2025.09.13 @ 16:30:37 Player: Petvaria Result: Destroyed by P-80 Master with Gamma Rifle Performance ------------- Evolutions (9) 4500 Regions Visited (14) 2800 Robots Destroyed (69) 345 Value Destroyed (2846) 2846 Prototype IDs (28) 560 Alien Tech Used (1) 200 Bonus (7343) 7343 TOTAL SCORE: 18594 Bonus ------- High Alert Combat Kills 98 Follower Combat Kills 2011 Registered with UFD 300 Met Warlord at Base 500 MAIN.C Attacked Warlord 500 Warlord Defense Kills 434 Used Core Reset Matrix 3000 Scanned by Researcher 500 Cogmind --------- Core Integrity 0/1600 Matter 300/300 Energy 100/100 System Corruption 13% Temperature Cool (0) Movement Core (50) Location -1/Access Parts ------- > --- POWER (2) -------- (None) > --- PROPULSION (8) --- (None) > --- UTILITY (13) ----- Advanced Melee Analysis Suite > --- WEAPON (2) ------- (None) > --- INVENTORY (5) ---- Quantum Reactor Medium Storage Unit Advanced Shield Generator Subatomic Replicator Peak State ------------ > --- POWER ------------ Light Antimatter Reactor Micro Antimatter Reactor > --- PROPULSION ------- Xenon Bombardment Thruster Xenon Bombardment Thruster Cooled Nuclear Pulse Thruster Q-thruster Impulse Thruster Array Cooled Q-thruster > --- UTILITY ---------- Medium Storage Unit Surveybot 17 Chip Improved Melee Analysis Suite Advanced Melee Analysis Suite Advanced Melee Analysis Suite Advanced Melee Analysis Suite Improved Armor Integrity Analyzer Improved Weapon Shielding Improved Hacking Suite Advanced Hacking Suite Advanced Hacking Suite Improved System Shield > --- WEAPON ----------- Companion Sword > --- INVENTORY -------- Q-thruster Q-thruster Improved Transmission Jammer Hardened Heavy Armor Plating Makeshift Light Armor Plating Subatomic Replicator Sigix Terminator Advanced Datajack [Rating: 137] Favorites ----------- Power Meta Core Engine Ion Engine Power Core Meta Core Reactor Particle Reactor Propulsion Light Treads Treads Light Treads Hover Unit Backup Propulsion III Flight Unit Xenon Bombardment Thruster Utility Large Storage Unit Device V3-11A's Pendant Storage Large Storage Unit Processor Advanced Melee Analysis Suite Hackware Advanced Hacking Suite Protection Makeshift Light Armor Plating Weapon Subdweller Machine Gun Energy Gun Medium Laser Ballistic Gun Subdweller Machine Gun Launcher Subdweller Shrapnel Launcher Slashing Weapon Companion Sword Piercing Weapon Makeshift Spear Special Melee Weapon Improved Datajack Build | -11 -10 -10 -7 -7 -5 -5 -5 -5 -4 -4 -3 -3 -2 -1 ------- Run | Yrd Mat Sub Rec Scr Fac Upp Upp War Pro Fac Res Qua Res Acc Slots Evolved 18 | . . . . . 10 . . . . 2 2 . 2 2 Power 1 | . . . . . . . . . . 1 . . . . Propulsion 6 | . . . . . 3 . . . . . . . 2 1 Utility 11 | . . . . . 7 . . . . 1 2 . . 1 Weapon . | . . . . . . . . . . . . . . . Parts Attached 96 | 6 6 7 3 1 7 1 2 16 1 8 5 18 15 . Power 11 | 1 . 1 . . . . . 3 . 2 . 4 . . Engine 2 | 1 . . . . . . . 1 . . . . . . Core 4 | . . 1 . . . . . 2 . 1 . . . . Reactor 5 | . . . . . . . . . . 1 . 4 . . Propulsion 33 | 2 . 1 3 . 4 . . 5 . 2 . 6 10 . Treads 15 | 2 . 1 3 . 1 . . 5 . 2 . 1 . . Leg . | . . . . . . . . . . . . . . . Wheel . | . . . . . . . . . . . . . . . Hover . | . . . . . . . . . . . . . . . Flight 18 | . . . . . 3 . . . . . . 5 10 . Utility 38 | 1 2 1 . . 2 1 2 7 1 3 5 8 5 . Device 8 | . . 1 . . . 1 1 1 . 1 . . 3 . Storage 3 | 1 1 . . . . . . 1 . . . . . . Processor 10 | . . . . . 1 . 1 . 1 1 2 3 1 . Hackware 7 | . . . . . 1 . . . . . 1 4 1 . Protection 10 | . 1 . . . . . . 5 . 1 2 1 . . Artifact . | . . . . . . . . . . . . . . . Weapon 14 | 2 4 4 . 1 1 . . 1 . 1 . . . . Energy Gun 4 | 2 . 1 . . . . . 1 . . . . . . Energy Cannon . | . . . . . . . . . . . . . . . Ballistic Gun 4 | . 3 1 . . . . . . . . . . . . Ballistic Cannon . | . . . . . . . . . . . . . . . Launcher 2 | . 1 1 . . . . . . . . . . . . Special Weapon . | . . . . . . . . . . . . . . . Impact Weapon . | . . . . . . . . . . . . . . . Slashing Weapon 1 | . . . . 1 . . . . . . . . . . Piercing Weapon 1 | . . 1 . . . . . . . . . . . . Special Melee Weapon 2 | . . . . . 1 . . . . 1 . . . . Unidentified Prototypes 9 | . . 1 . 1 . . 1 1 . 1 . 1 3 . Corrupted Parts 6 | . . . . . . . . 3 . 3 . . . . System Corruption 41 | . . . . . . . . 21 . 20 . . . . Parts Lost 52 | . . 1 . . . 1 5 1 . . . 15 19 10 Power 6 | . . . . . . . . . . . . 3 3 . Propulsion 22 | . . 1 . . . 1 2 . . . . 6 10 2 Utility 21 | . . . . . . . 2 1 . . . 5 6 7 Weapon 3 | . . . . . . . 1 . . . . 1 . 1 Highest Loss Streak 19 | . . 1 . . . 1 3 1 . . . 7 19 8 To Critical Strikes . | . . . . . . . . . . . . . . . Average Backups 10 | 3 8 11 13 12 9 5 5 6 8 8 9 8 7 3 Power . | . 1 1 1 1 . . . 1 1 1 1 1 . . Propulsion 1 | 1 1 1 1 2 1 . . . 1 2 2 2 2 . Utility 2 | . . 1 1 1 1 1 3 4 6 4 6 5 2 1 Weapon 5 | . 5 8 9 8 6 3 1 . . . . . . . Tool/Special . | . . . . . . . . . . . . . . . Unused Backups 24 | . 4 1 . 1 4 2 2 . 2 . . . 5 3 Power 3 | . . . . . 2 . . . . . . . . 1 Propulsion 4 | . 3 . . 1 . . . . . . . . . . Utility 5 | . . . . . . . . . 2 . . . 2 1 Weapon 9 | . 1 1 . . 2 2 2 . . . . . 1 . Tool/Special 3 | . . . . . . . . . . . . . 2 1 Average Slot Usage (%) 79 | . 92 95 77 70 37 40 32 56 87 90 93 84 81 33 Engine 4 | . 14 11 . . . . . 3 . . . . . . Core 4 | . . 1 10 10 5 5 3 1 5 6 4 2 2 . Treads 23 | . 28 26 29 30 10 . . 9 29 25 23 15 . . Flight 1 | . . . . . 5 13 6 . . . . 4 21 4 Device 3 | . . 7 8 . . . . 1 5 5 4 1 2 . Storage 8 | . 14 13 10 10 2 . . 1 5 5 4 4 3 . Processor 4 | . . . . . 2 5 10 5 9 15 17 20 23 9 Hackware 1 | . . . . . 1 5 4 . . . 3 7 17 12 Protection 6 | . 6 5 . . . . . 19 24 21 19 14 1 3 Energy Gun 2 | . 11 6 . . . . . . . . . . . . Ballistic Gun 7 | . 13 13 10 10 2 . . . . . . . . . Launcher 1 | . 2 5 . . . . . . . . . . . . Slashing Weapon 2 | . . . . 3 5 5 3 4 5 4 4 4 3 3 Piercing Weapon 2 | . . 1 10 6 . . . . . . . . . . Peak Build Rating 137 | 6 9 27 31 31 45 47 54 83 83 101 110 110 137 55 Average Rating 38 | 4 8 13 29 29 36 43 35 48 82 93 107 94 114 41 On Entrance 47 | . 6 9 27 28 31 45 41 9 83 82 97 110 96 54 Naked Turns . | . . . . . . . . . . . . . . . Heaviest Build 88 | 14 31 38 33 34 34 11 11 73 72 83 88 88 38 6 Greatest Support 139 | 40 40 40 68 68 91 17 11 139 139 139 137 137 49 12 Greatest Overweight (x) 1 | . . . . . . . 1 1 . . . 1 1 1 Average Overweight (x) . | . . . . . . . . . . . . . . . Largest Inventory Capacity 15 | 8 15 15 15 15 15 5 5 10 10 10 10 10 10 5 Average Capacity 12 | 6 10 15 15 15 10 5 5 6 10 10 10 10 8 5 Most Carried 15 | 6 9 15 15 15 15 5 5 10 10 10 10 10 10 4 Average Carried 11 | 3 8 13 14 14 9 4 4 6 9 9 9 9 8 3 Final Capacity 15 | 8 15 15 15 15 5 5 5 10 10 10 10 10 5 5 Final Carried 15 | 6 9 15 15 15 5 5 5 9 10 10 10 10 2 4 Class Distribution -------------------- 43% | Mutant 31% | Commander-Mutant 18% | Scavenger-Mutant Dominant Class ---------------- Mutant | -10/Materials Mutant | -10/Subcaves Commander-Mutant | -7/Recycling Commander-Mutant | -7/Scraptown Mutant | -5/Factory Sprinter | -5/Upper Caves Mutant | -5/Upper Caves Mutant | -5/Warlord Scavenger-Mutant | -4/Proximity Caves Scavenger-Mutant | -4/Factory Scavenger-Mutant | -3/Research Scavenger-Mutant | -3/Quarantine Hacker-Sprinter | -2/Research Hacker-Mutant | -1/Access Resources | -11 -10 -10 -7 -7 -5 -5 -5 -5 -4 -4 -3 -3 -2 -1 ----------- Run | Yrd Mat Sub Rec Scr Fac Upp Upp War Pro Fac Res Qua Res Acc Matter Collected 1768 | 205 346 197 30 . 73 12 10 244 64 126 78 175 208 . Remotely . | . . . . . . . . . . . . . . . Salvage Created 3633 | . 519 153 . . 216 . . 266 . . 134 898 659 788 Parts 166 | . 22 10 . . 8 . . 10 . . 3 47 33 33 Haulers Intercepted 2 | . . . . . 2 . . . . . . . . . Recyclers Shooed 2 | . 1 . . . . . . . . . . 1 . . Parts Field Recycled . | . . . . . . . . . . . . . . . Retrieved Matter . | . . . . . . . . . . . . . . . Parts Self-Destructed 19 | . . 9 . . . . . . 10 . . . . . Prevented 16 | . . . . . . . . . 16 . . . . . Kills | -11 -10 -10 -7 -7 -5 -5 -5 -5 -4 -4 -3 -3 -2 -1 ------- Run | Yrd Mat Sub Rec Scr Fac Upp Upp War Pro Fac Res Qua Res Acc Combat Hostiles Destroyed 43 | . 11 3 . . . . . 4 . . 2 15 7 1 Melee 29 | . . . . . . . . 4 . . 2 15 7 1 Guns 14 | . 11 3 . . . . . . . . . . . . Classes Destroyed 13 | . 3 3 . . 2 . . . . . 1 3 1 . Worker 12 | . 1 . . . . . . . . . . . 2 9 Hauler 2 | . . . . . 2 . . . . . . . . . Recycler 6 | . . . . . . . . . . . . . 2 4 Operator 3 | . . . . . 1 . . . . . . 2 . . Watcher 2 | . 1 . . . . . . . . . . . 1 . Swarmer 13 | . . . . . . . . . . . . 8 5 . Grunt 18 | . 11 . . . . . . 4 . . . 2 . 1 Researcher 1 | . . . . . . . . . . . . 1 . . Sentry 1 | . . 1 . . . . . . . . . . . . Hunter 5 | . . . . . . . . . . . 2 3 . . Programmer 4 | . . . . . . . . . . . . 2 2 . Artisan 1 | . . 1 . . . . . . . . . . . . Subdweller 2 | . . 2 . . . . . . . . . . . . Best Kill Streak 8 | . 2 1 . . 3 . . 3 . . 2 5 5 8 Combat Bots Only 5 | . 2 1 . . . . . 3 . . 2 5 5 1 Max Kills in Single Turn 2 | . 1 1 . . 1 . . 1 . . 1 2 1 1 Gunslinging . | . . . . . . . . . . . . . . . Exploded . | . . . . . . . . . . . . . . . Melee 2 | . . . . . . . . 1 . . 1 2 1 1 Uniques/NPCs Destroyed . | . . . . . . . . . . . . . . . Combat | -11 -10 -10 -7 -7 -5 -5 -5 -5 -4 -4 -3 -3 -2 -1 -------- Run | Yrd Mat Sub Rec Scr Fac Upp Upp War Pro Fac Res Qua Res Acc Hostile Shots Fired 902 | . 48 22 . . 8 23 72 97 . 7 71 251 178 125 Missed 312 | . 17 4 . . 3 18 31 20 . 2 26 68 81 42 Hits 590 | . 31 18 . . 5 5 41 77 . 5 45 183 97 83 Projectile 590 | . 31 18 . . 5 5 41 77 . 5 45 183 97 83 AOE 1 | . . . . . . . . . . . . . . 1 Critical Strikes 20 | . . . . . . . . 5 . . 2 7 2 4 Damage Taken 11619 | . 380 360 33 . 135 74 653 1462 . 103 839 3405 2191 1984 Core 4148 | . 48 68 . . 88 25 528 127 . . 36 629 995 1604 Absorbed by Shields 38 | . . . . . 19 . . . . . . . 19 . Redirected to Shielding 196 | . 10 23 . . . . . . . . 27 49 14 73 Core Remaining (%) 59 | 100 . . . 53 . . . . 23 100 . 48 31 . Volleys Fired 60 | . 44 16 . . . . . . . . . . . . Largest 2 | . 2 2 . . . . . . . . . . . . Hottest 83 | . 73 83 . . . . . . . . . . . . Shots Fired 109 | . 80 29 . . . . . . . . . . . . Gun 100 | . 74 26 . . . . . . . . . . . . Cannon . | . . . . . . . . . . . . . . . Launcher 9 | . 6 3 . . . . . . . . . . . . Special . | . . . . . . . . . . . . . . . Kinetic 54 | . 38 16 . . . . . . . . . . . . Thermal 49 | . 36 13 . . . . . . . . . . . . Explosive 6 | . 6 . . . . . . . . . . . . . Electromagnetic . | . . . . . . . . . . . . . . . Robot Hit Streak 23 | . 9 23 . . . . . . . . . . . . Robot Miss Streak 3 | . 3 1 . . . . . . . . . . . . Penetration Max . | . . . . . . . . . . . . . . . Secondary Targets . | . . . . . . . . . . . . . . . Shots Hit Robots 216 | . 44 23 . . 8 . . 18 . . 6 68 23 26 Core Hits 91 | . 27 7 . . 3 . . 6 . . 3 24 11 10 Critical Kills . | . . . . . . . . . . . . . . . Critical Parts Destroyed . | . . . . . . . . . . . . . . . Critical Strikes 7 | . 2 1 . . . . . . . . . 4 . . Burn 2 | . 2 . . . . . . . . . . . . . Destroy 1 | . . 1 . . . . . . . . . . . . Melee Attacks 214 | . . 4 . . 13 . . 37 1 3 9 79 33 35 Impact . | . . . . . . . . . . . . . . . Slashing 208 | . . . . . 11 . . 37 1 3 9 79 33 35 Piercing 4 | . . 4 . . . . . . . . . . . . Sneak Attacks 22 | . . . . . 4 . . . . . . 1 4 13 Combat Hostiles . | . . . . . . . . . . . . . . . Follow-up Attacks 5 | . . . . . . . . 1 . . . 3 . 1 Damage Inflicted 8822 | . 721 380 . . 362 . . 698 . . 272 3233 1334 1822 Guns 1019 | . 670 349 . . . . . . . . . . . . Cannons . | . . . . . . . . . . . . . . . Explosions 82 | . 51 31 . . . . . . . . . . . . Melee 7720 | . . . . . 362 . . 698 . . 272 3233 1334 1821 Ramming 1 | . . . . . . . . . . . . . . 1 Kinetic 573 | . 382 191 . . . . . . . . . . . . Thermal 477 | . 288 189 . . . . . . . . . . . . Explosive 51 | . 51 . . . . . . . . . . . . . Electromagnetic . | . . . . . . . . . . . . . . . Impact . | . . . . . . . . . . . . . . . Slashing 7720 | . . . . . 362 . . 698 . . 272 3233 1334 1821 Piercing . | . . . . . . . . . . . . . . . Highest Corruption 21 | . . . . . . . . 21 21 20 . . 8 12 Average Corruption 17 | . . . . . . . . 18 21 19 . . 5 9 Corruption Purged . | . . . . . . . . . . . . . . . Corruption Blocked . | . . . . . . . . . . . . . . . Effects 62 | . . . . . . . . 21 17 17 . . 3 4 Message Errors 12 | . . . . . . . . 3 2 5 . . 1 1 Matter Fused 22 | . . . . . . . . 9 6 5 . . 1 1 Heat Flow Errors 3 | . . . . . . . . 1 2 . . . . . Energy Discharges 10 | . . . . . . . . 4 2 4 . . . . Parts Rejected 1 | . . . . . . . . . . . . . 1 . Parts Fused 1 | . . . . . . . . . 1 . . . . . Data Loss (minor) 4 | . . . . . . . . 2 1 1 . . . . Data Loss (major) 5 | . . . . . . . . 1 2 1 . . . 1 Alerts 3 | . . . . . . . . 1 1 1 . . . . Misdirections 1 | . . . . . . . . . . . . . . 1 Overload Shots . | . . . . . . . . . . . . . . . Overflow Damage 895 | . . . . . 91 . . . . . . 184 172 448 Projectiles . | . . . . . . . . . . . . . . . Explosions . | . . . . . . . . . . . . . . . Melee 895 | . . . . . 91 . . . . . . 184 172 448 Knockbacks . | . . . . . . . . . . . . . . . Impact . | . . . . . . . . . . . . . . . Kinetic . | . . . . . . . . . . . . . . . Secondary . | . . . . . . . . . . . . . . . Self-Inflicted Damage 4 | . 4 . . . . . . . . . . . . . Shots 1 | . 1 . . . . . . . . . . . . . Rammed 1 | . . . . . . . . . . . . . . 1 Targets Rammed 1 | . . . . . . . . . . . . . . 1 Kicked . | . . . . . . . . . . . . . . . Crushed . | . . . . . . . . . . . . . . . Highest Temperature 235 | . 114 . . . . . . 220 235 15 61 8 30 . Average Temperature 33 | . 40 . . . . . . 31 103 3 4 8 9 . Received Heat Transfer 1384 | . 213 60 9 . 26 . 18 565 . 9 61 207 63 153 Siege Activations . | . . . . . . . . . . . . . . . Martial Activations . | . . . . . . . . . . . . . . . Shielding Activations . | . . . . . . . . . . . . . . . Robots Disrupted 1 | . . . . . . . . . . . . 1 . . Combat Hostiles 1 | . . . . . . . . . . . . 1 . . Robots Corrupted . | . . . . . . . . . . . . . . . Combat Hostiles . | . . . . . . . . . . . . . . . Parts Fried 1 | . . . . . . . . . . . 1 . . . Impact Corruptions . | . . . . . . . . . . . . . . . Robots Melted . | . . . . . . . . . . . . . . . Combat Hostiles . | . . . . . . . . . . . . . . . Parts Melted 3 | . . 2 . . . . . 1 . . . . . . Heat Transferred 1383 | . 999 384 . . . . . . . . . . . . Parts Sabotaged . | . . . . . . . . . . . . . . . Parts Stolen . | . . . . . . . . . . . . . . . Parts Stripped . | . . . . . . . . . . . . . . . Power Chain Reactions . | . . . . . . . . . . . . . . . Alert | -11 -10 -10 -7 -7 -5 -5 -5 -5 -4 -4 -3 -3 -2 -1 ------- Run | Yrd Mat Sub Rec Scr Fac Upp Upp War Pro Fac Res Qua Res Acc Maximum Alert Level 3 | . . . . . 1 . . . . 3 2 2 2 1 Low Security (%) 61 | 100 100 . 100 . 97 . . . . 14 . 8 69 18 Level 1 21 | . . . . . 2 . . . . 31 1 90 16 81 Level 2 12 | . . . . . . . . . . 19 98 1 13 . Level 3 4 | . . . . . . . . . . 34 . . . . Level 4 . | . . . . . . . . . . . . . . . Level 5 . | . . . . . . . . . . . . . . . High Security . | . . . . . . . . . . . . . . . Max Security . | . . . . . . . . . . . . . . . Peak Influence 836 | . 103 . 162 . 205 . . . . 836 686 402 465 291 Initial 395 | . . . 88 . . . . . . 395 388 297 36 278 Average 200 | . 30 . 46 . 60 . . . . 512 587 290 131 238 Influence Increases 5463 | . 341 246 511 . 316 120 165 110 261 1165 606 529 781 312 Destroy 0b10 Robot/C 1820 | . 220 140 240 . 20 . . 80 180 140 260 320 140 80 Destroy 0b10 Robot/NC 215 | . 10 . 40 . 15 . . . . 35 10 10 25 70 Destroy Leader 240 | . 62 . . . 14 . . . . 48 44 30 22 20 Allied During Kill 638 | . . 76 175 . 6 . . . 81 155 90 . . 55 Successful Hack 15 | . . . . . . . . . . . . . 15 . Disable Machine 315 | . 15 . 15 . 15 . . . . 180 45 45 . . Anti-Garrison Action 150 | . . . . . . . . . . 150 . . . . Destroy Structure 270 | . 34 . 41 . 6 . . . . 142 22 4 9 12 Advance Influence 300 | . . . . . . . . . . 300 . . . . Partial Spotted 45 | . . . . . 30 . . . . . . . 15 . Lose Combat Pursuer 1455 | . . 30 . . 210 120 165 30 . 15 135 120 555 75 Influence Decreases 5373 | . 341 62 695 . 111 137 166 251 154 578 818 993 380 687 Entered New Map 1298 | . . . 96 . . 77 36 187 46 58 352 231 28 187 Time Decay 2291 | . 341 22 370 . 31 50 80 54 108 350 246 310 169 160 Lost Part 503 | . . . . . . 10 50 10 . . . 150 183 100 Lost Ally 829 | . . 40 229 . 80 . . . . 20 220 . . 240 Purge Threat 452 | . . . . . . . . . . 150 . 302 . . Squads Dispatched 22 | . 2 . . . 4 . . . . 4 1 3 2 6 Investigation 2 | . 1 . . . . . . . . . . . . 1 Extermination 6 | . . . . . . . . . . 1 1 1 1 2 Reinforcement 8 | . 1 . . . 2 . . . . . . 2 1 2 Assault 4 | . . . . . 2 . . . . 2 . . . . Garrison 2 | . . . . . . . . . . 1 . . . 1 Intercept . | . . . . . . . . . . . . . . . Searches Triggered . | . . . . . . . . . . . . . . . Construction Impeded 1 | . . . . . . . . . . . . . . 1 Haulers Reinforced . | . . . . . . . . . . . . . . . Active Scanning Responses . | . . . . . . . . . . . . . . . Cargo Convoy Interrupts . | . . . . . . . . . . . . . . . Stealth | -11 -10 -10 -7 -7 -5 -5 -5 -5 -4 -4 -3 -3 -2 -1 --------- Run | Yrd Mat Sub Rec Scr Fac Upp Upp War Pro Fac Res Qua Res Acc Distress Signals 18 | . 2 . . . 2 . . . 1 2 1 1 3 6 Communications Jammed . | . . . . . . . . . . . . . . . Distress Signals . | . . . . . . . . . . . . . . . Times Spotted 242 | . 18 14 4 . 20 6 17 26 2 6 19 31 51 28 Peak Tracking Total 22 | . 4 4 2 . 13 9 9 14 . 2 11 9 22 16 Tactical Retreats 28 | . . 1 . . 4 3 3 1 . 1 2 4 6 3 Traps | -11 -10 -10 -7 -7 -5 -5 -5 -5 -4 -4 -3 -3 -2 -1 ------- Run | Yrd Mat Sub Rec Scr Fac Upp Upp War Pro Fac Res Qua Res Acc Traps Triggered 7 | . 2 . . . . . . . . . . . 4 1 Indirectly . | . . . . . . . . . . . . . . . Trap Hack Attempts . | . . . . . . . . . . . . . . . Triggered . | . . . . . . . . . . . . . . . Disarmed . | . . . . . . . . . . . . . . . Reprogrammed . | . . . . . . . . . . . . . . . Reused . | . . . . . . . . . . . . . . . Traps Extracted . | . . . . . . . . . . . . . . . Installed . | . . . . . . . . . . . . . . . Triggered . | . . . . . . . . . . . . . . . Most Traps Carried 2 | . . 2 2 2 1 . . . . . . . . . Machines | -11 -10 -10 -7 -7 -5 -5 -5 -5 -4 -4 -3 -3 -2 -1 ---------- Run | Yrd Mat Sub Rec Scr Fac Upp Upp War Pro Fac Res Qua Res Acc Machines Disabled 26 | . 1 2 1 . 1 . . . 2 13 3 3 . . Max in Single Turn 1 | . 1 1 . . . . . . . 1 . 1 . . Garrison Access 4 | . . . . . 1 . . . . 2 . . . 1 Machines Repaired . | . . . . . . . . . . . . . . . Machines Dismantled . | . . . . . . . . . . . . . . . Machines Sabotaged . | . . . . . . . . . . . . . . . Overloaded Fab Kills . | . . . . . . . . . . . . . . . Hacking | -11 -10 -10 -7 -7 -5 -5 -5 -5 -4 -4 -3 -3 -2 -1 --------- Run | Yrd Mat Sub Rec Scr Fac Upp Upp War Pro Fac Res Qua Res Acc Machines Accessed 19 | . . 1 . 4 . 1 . 3 . 2 . 3 3 2 Terminals 6 | . . . . . . . . . . . . 3 2 1 Fabricators 1 | . . . . . . . . . . . . . 1 . Repair Stations 1 | . . . . . . . . . . 1 . . . . Recycling Units . | . . . . . . . . . . . . . . . Scanalyzers . | . . . . . . . . . . . . . . . Garrison Access 2 | . . . . . . . . . . 1 . . . 1 Total Hacks 58 | . . 1 . 29 . 1 . 7 . 3 . 8 5 4 Successful 46 | . . 1 . 29 . 1 . 7 . 1 . 5 1 1 Failed 12 | . . . . . . . . . . 2 . 3 4 3 Catastrophic 5 | . . . . . . . . . . . . 1 2 2 Database Lockouts . | . . . . . . . . . . . . . . . Manual 15 | . . . . . 1 . . . . . . 7 4 3 Terminals 15 | . . . . . . . . . . . . 8 4 3 Fabricators 1 | . . . . . . . . . . . . . 1 . Repair Stations 2 | . . . . . . . . . . 2 . . . . Recycling Units . | . . . . . . . . . . . . . . . Scanalyzers . | . . . . . . . . . . . . . . . Garrison Access 2 | . . . . . . . . . . 1 . . . 1 Terminal Hacks 44 | . . 1 . 29 . 1 . 7 . . . 5 1 . Record 24 | . . . . 24 . . . . . . . . . . Robot Analysis 4 | . . . . 4 . . . . . . . . . . Prototype ID Bank 5 | . . . . . . . . 5 . . . . . . Open Door 5 | . . . . 1 . 1 . 2 . . . 1 . . Branch Access Points 1 | . . . . . . . . . . . . . 1 . Unreport Threat 3 | . . . . . . . . . . . . 3 . . Recall Reinforcements 1 | . . . . . . . . . . . . 1 . . Proto ID Catalog 1 | . . 1 . . . . . . . . . . . . Fabricator Hacks . | . . . . . . . . . . . . . . . Repair Station Hacks . | . . . . . . . . . . . . . . . Recycling Unit Hacks . | . . . . . . . . . . . . . . . Scanalyzer . | . . . . . . . . . . . . . . . Garrison Access Hacks 2 | . . . . . . . . . . 1 . . . 1 Seal Access 2 | . . . . . . . . . . 1 . . . 1 Unauthorized Hacks . | . . . . . . . . . . . . . . . Terminals . | . . . . . . . . . . . . . . . Fabricators . | . . . . . . . . . . . . . . . Repair Stations . | . . . . . . . . . . . . . . . Recycling Units . | . . . . . . . . . . . . . . . Scanalyzers . | . . . . . . . . . . . . . . . Garrison Access . | . . . . . . . . . . . . . . . Data Cores Recovered 3 | . . . . . 1 . . . . 1 . 1 . . Used . | . . . . . . . . . . . . . . . Hacking Detections 9 | . . . . . 1 . . . . 1 . 3 3 1 Full Trace Events . | . . . . . . . . . . . . . . . Feedback Events . | . . . . . . . . . . . . . . . Feedback Blocked . | . . . . . . . . . . . . . . . Robot Schematics Acquired 2 | . . . . . . . . . . . . 2 . . Robots Built . | . . . . . . . . . . . . . . . Authchips . | . . . . . . . . . . . . . . . Time . | . . . . . . . . . . . . . . . Total Robot Build Rating . | . . . . . . . . . . . . . . . Part Schematics Acquired 1 | . . . . . . . . . . . . 1 . . Parts Built . | . . . . . . . . . . . . . . . Authchips . | . . . . . . . . . . . . . . . Time . | . . . . . . . . . . . . . . . Total Part Build Rating . | . . . . . . . . . . . . . . . Parts Repaired . | . . . . . . . . . . . . . . . Time . | . . . . . . . . . . . . . . . Parts Recycled . | . . . . . . . . . . . . . . . Recycled Matter . | . . . . . . . . . . . . . . . Retrieved Matter . | . . . . . . . . . . . . . . . Retrieved Components . | . . . . . . . . . . . . . . . Parts Scanalyzed . | . . . . . . . . . . . . . . . Part Schematics Acquired . | . . . . . . . . . . . . . . . Parts Damaged . | . . . . . . . . . . . . . . . Bothacking | -11 -10 -10 -7 -7 -5 -5 -5 -5 -4 -4 -3 -3 -2 -1 ------------ Run | Yrd Mat Sub Rec Scr Fac Upp Upp War Pro Fac Res Qua Res Acc Used RIF Installer . | . . . . . . . . . . . . . . . Robots Hacked 2 | . . . . . 2 . . . . . . . . . Non-combat 2 | . . . . . 2 . . . . . . . . . Combat . | . . . . . . . . . . . . . . . Robot Hacks Applied 2 | . . . . . 2 . . . . . . . . . no_distress 2 | . . . . . 2 . . . . . . . . . Relay Couplers Released 4 | . . . . . 2 . . . . 2 . . . . Machine Destruction 4 | . . . . . 2 . . . . 2 . . . . Fabnet Peak Effective % . | . . . . . . . . . . . . . . . Robots Rewired 29 | . . . 27 . . . . . 2 . . . . . Allies Hacked 3 | . . . 3 . . . . . . . . . . . Hacks Repelled . | . . . . . . . . . . . . . . . Allies | -11 -10 -10 -7 -7 -5 -5 -5 -5 -4 -4 -3 -3 -2 -1 -------- Run | Yrd Mat Sub Rec Scr Fac Upp Upp War Pro Fac Res Qua Res Acc Total Allies 77 | . . 12 27 . . . . . 6 7 6 . 6 13 Largest Group 19 | . . 12 19 10 10 . . . 6 7 6 . 6 10 Highest-Rated Group 535 | . . 228 371 233 233 . . . 411 535 419 . 87 143 Highest-Rated Ally 116 | . . 19 40 40 40 . . . 81 116 81 . 15 15 Total Orders . | . . . . . . . . . . . . . . . Ally Attacks 311 | . . 39 84 . 15 . . . 20 45 53 . 11 44 Total Damage 10413 | . . 638 2487 . 127 . . . 1037 2022 2690 . 169 1243 Kills 73 | . . 8 21 . 1 . . . 9 14 14 . 1 5 Allies Corrupted 1 | . . . . . 1 . . . . . . . . . Allies Melted 2 | . . . . . . . . 1 . . 1 . . . Intel | -11 -10 -10 -7 -7 -5 -5 -5 -5 -4 -4 -3 -3 -2 -1 ------- Run | Yrd Mat Sub Rec Scr Fac Upp Upp War Pro Fac Res Qua Res Acc Active Infowar (turns) 344 | . . . . . . . 164 . . . . . 180 . Sensors 174 | . . . . . . . . . . . . . 174 . Terrain 6 | . . . . . . . . . . . . . 6 . Decoding 164 | . . . . . . . 164 . . . . . . . Robot Analysis Total 4 | . . . . 4 . . . . . . . . . . Derelict Logs Recovered 8 | . . 1 . 3 . 1 1 . 2 . . . . . Drone Launches . | . . . . . . . . . . . . . . . Drone Recoveries . | . . . . . . . . . . . . . . . Exploration | -11 -10 -10 -7 -7 -5 -5 -5 -5 -4 -4 -3 -3 -2 -1 ------------- Run | Yrd Mat Sub Rec Scr Fac Upp Upp War Pro Fac Res Qua Res Acc Turns Passed 15041 | 92 1224 3899 1634 3257 198 109 168 1327 406 798 536 712 347 334 Spaces Moved 10393 | 61 479 2362 792 2028 246 320 415 1158 216 259 263 555 678 561 Core 404 | 20 . . . . . . 117 148 . . . . . 119 Treads 6951 | 41 479 2362 792 2028 57 . . 240 216 259 263 214 . . Legs . | . . . . . . . . . . . . . . . Wheels . | . . . . . . . . . . . . . . . Hover 770 | . . . . . . . . 770 . . . . . . Flight 2268 | . . . . . 189 320 298 . . . . 341 678 442 Fastest Speed 22 | 50 160 160 160 160 32 32 34 50 166 165 166 28 22 37 Average Speed 122 | 123 160 160 160 160 62 32 38 93 166 165 166 82 26 41 Slowest Speed 170 | 160 160 160 160 160 160 34 100 170 166 166 166 170 120 100 Overloaded Moves . | . . . . . . . . . . . . . . . Propulsion Burnouts . | . . . . . . . . . . . . . . . Robots Hopped 24 | . . . . . . 3 . . . . . . 15 6 Potential Cave-ins . | . . . . . . . . . . . . . . . Cave-ins Triggered . | . . . . . . . . . . . . . . . Exploration Rate (%) 50 | 4 60 96 97 94 11 67 71 93 41 11 9 59 19 23 Regions Visited 14 Branch Regions 8 Pre-discovered Areas 5 | . . . . 4 . . . . 1 . . . . . Known Exits Taken 6 | . . . . . 1 1 . 1 1 1 . 1 . . Unknown Exits Taken 8 | 1 1 1 1 1 . . 1 . . . 1 . 1 . Scrap Searched 13 | . . 3 . 6 . 2 1 . 1 . . . . . Spaces Dug 18 | . . . . . 3 . . . 1 2 3 2 3 4 Terrain Destroyed 106 | . 40 48 . . 3 . . . 1 2 3 2 3 4 Melee 18 | . . . . . 3 . . . 1 2 3 2 3 4 Projectile . | . . . . . . . . . . . . . . . AOE 88 | . 40 48 . . . . . . . . . . . . Terrain Rammed . | . . . . . . . . . . . . . . . Walls Destroyed . | . . . . . . . . . . . . . . . Machines Disabled . | . . . . . . . . . . . . . . . Actions | -11 -10 -10 -7 -7 -5 -5 -5 -5 -4 -4 -3 -3 -2 -1 --------- Run | Yrd Mat Sub Rec Scr Fac Upp Upp War Pro Fac Res Qua Res Acc Total 12279 | 78 854 2449 1161 2041 274 321 423 1351 265 620 349 703 788 602 Wait 1028 | . 302 40 102 6 . . 2 116 3 342 68 23 14 10 Move 10332 | 60 478 2361 791 2027 245 313 414 1157 215 258 262 554 648 549 Hop 23 | . . . . . . 3 . . . . . . 14 6 Pick Up 101 | 12 8 10 1 4 2 1 . 15 6 3 3 17 17 2 Fast Attach 35 | . 3 3 1 . 3 1 2 5 . 6 2 . 9 . Attach 61 | 6 1 2 . . 4 . . 11 1 2 1 19 14 . Detach 9 | . . . 1 . . 1 2 1 . . . 2 2 . Swap 30 | . 11 2 2 1 . . . 4 . 3 2 2 3 . Drop 66 | . 7 6 4 3 7 2 3 6 5 3 2 4 14 . Fire 60 | . 44 16 . . . . . . . . . . . . Melee 209 | . . 4 . . 13 . . 36 1 3 9 76 33 34 Ram 1 | . . . . . . . . . . . . . . 1 Kick . | . . . . . . . . . . . . . . . Crush . | . . . . . . . . . . . . . . . Escape Stasis 26 | . . . . . . . . . . . . 6 20 . Rewire 298 | . . 5 259 . . . . . 34 . . . . . Trap . | . . . . . . . . . . . . . . . Miscellaneous . | . . . . . . . . . . . . . . . Route ------- -11/Scrapyard -10/Materials (discovered 4 exits: [*Mat x2] / [*Min] / *Sub) -10/Subcaves (discovered 3 exits: [*Mat x2] / [*Rec]) -7/Recycling (discovered 2 exits: *Fac / *Scr) -7/Scraptown (discovered 2 exits: *Fac x2) -5/Factory (discovered 6 exits: Fac x2 / *Upp x2 / Ext x2) -5/Upper Caves -5/Upper Caves (discovered 2 exits: *Fac / *War) -5/Warlord -4/Proximity Caves -4/Factory (discovered 4 exits: *Res x4) -3/Research (discovered 3 exits: *Res x2 / *Qua) -3/Quarantine -2/Research (discovered 3 exits: *Acc / Tes x2) -1/Access History --------- Turn | Location | Event 6 | -11/Scrapyard | Discovered new exit (range 16) 93 | -11/Scrapyard | Entered Materials 305 | -10/Materials | Build established: Mutant 391 | -10/Materials | Discovered new exit (range 10) 868 | -10/Materials | Discovered new exit (range 6) 976 | -10/Materials | Discovered new exit (range 11) 1295 | -10/Materials | Discovered new exit (range 8) 1317 | -10/Materials | Entered Subcaves 1599 | -10/Subcaves | Curiously followed by a Cobbler waking with a query about "LVR3C" 1791 | -10/Subcaves | Shifting Twisted Machinery released Piercing Trap 1796 | -10/Subcaves | Shifting Twisted Machinery released Sub. Monowheel 2590 | -10/Subcaves | Shifting Twisted Machinery released Barrage Gun 2600 | -10/Subcaves | Shifting Twisted Machinery released Battle Cannon 2811 | -10/Subcaves | Visited triangular shrine 2821 | -10/Subcaves | Found Prototype Device 2821 | -10/Subcaves | Identified V3-11A's Pendant 2826 | -10/Subcaves | Befriended Subdweller 2886 | -10/Subcaves | Befriended Subdweller 2891 | -10/Subcaves | Befriended Subdweller 3006 | -10/Subcaves | Befriended Subdweller 3227 | -10/Subcaves | Discovered new exit (range 3) 3256 | -10/Subcaves | Befriended Subdweller 3256 | -10/Subcaves | Befriended Subdweller 3283 | -10/Subcaves | Learned Materials emergency access door positions 3318 | -10/Subcaves | Shifting Twisted Machinery released Battle Cannon 3357 | -10/Subcaves | Discovered new exit (range 8) 3361 | -10/Subcaves | Befriended Subdweller 3395 | -10/Subcaves | Shifting Twisted Machinery released Battle Rifle 3576 | -10/Subcaves | Befriended Subdweller 3581 | -10/Subcaves | Befriended Subdweller 3831 | -10/Subcaves | Befriended Subdweller 3856 | -10/Subcaves | Befriended Subdweller 4086 | -10/Subcaves | Befriended Subdweller 4545 | -10/Subcaves | Visited 4L-MR0's lab 4564 | -10/Subcaves | Found Meta Core 4566 | -10/Subcaves | Attached Meta Core, gained temporary slots: Propulsion, Utility, Weapon 5194 | -10/Subcaves | Discovered new exit (range 12) 5216 | -10/Subcaves | Entered Recycling 5216 | -7/Recycling | Accompanied by 10 allies 5703 | -7/Recycling | Build established: Commander-Mutant 6044 | -7/Recycling | Lost 11 allies 6361 | -7/Recycling | Discovered new exit (range 9) 6765 | -7/Recycling | Scanned before Scraplab entrance 6782 | -7/Recycling | Lost 3 allies 6789 | -7/Recycling | Entered Scraplab 6802 | -7/Recycling | Discovered new exit (range 2) 6850 | -7/Recycling | Entered Scraptown 6850 | -7/Scraptown | Accompanied by 10 allies 7244 | -7/Scraptown | Discovered new exit (range 7) 7289 | -7/Scraptown | Scanned Subdweller tech in exchange for log data 7294 | -7/Scraptown | Learned Research stockpile data 7295 | -7/Scraptown | Learned Research interactive machine intel 7337 | -7/Scraptown | Visited TADAMA 7378 | -7/Scraptown | Visited Comm Corps 7566 | -7/Scraptown | Delivered V3-11A's Pendant to T0-NE2 in exchange for information 7844 | -7/Scraptown | Visited Fellowship of the Rings 7884 | -7/Scraptown | Visited Cyclists 7919 | -7/Scraptown | Visited Bundlers 8049 | -7/Scraptown | Visited Awakened 8226 | -7/Scraptown | Visited Cave Peace 8263 | -7/Scraptown | Visited UFD Registry 8263 | -7/Scraptown | Registered with UFD as "Cargodriver" 8311 | -7/Scraptown | Entered Cyclist Reading Room 8386 | -7/Scraptown | Visited Junk Repository 8438 | -7/Scraptown | Visited Curators Association 8490 | -7/Scraptown | Visited Botcube Research 8674 | -7/Scraptown | Visited Analyses Database 8710 | -7/Scraptown | Visited Scrapoid Pod Storage 8737 | -7/Scraptown | Visited Science Testing Area 8754 | -7/Scraptown | Visited Cartography Club 8802 | -7/Scraptown | Discovered new exit (range 5) 8914 | -7/Scraptown | Visited Abandonware Association 8929 | -7/Scraptown | Learned abandonware demo "OVRCLOCK.EXE" 8935 | -7/Scraptown | Learned abandonware demo "POISON.EXE" 8935 | -7/Scraptown | Learned abandonware demo "KABOOM.EXE" 8975 | -7/Scraptown | Visited Sword Containment 9032 | -7/Scraptown | Visited Research Penetration Think Tank 9424 | -7/Scraptown | Found Surveybot 17 Chip 9625 | -7/Scraptown | Learned location of Cetus (-5) 9625 | -7/Scraptown | Learned location of Hub_04(d) (-5) 9625 | -7/Scraptown | Learned location of Armory (-4) 9625 | -7/Scraptown | Learned 8 Factory zone layouts 9625 | -7/Scraptown | Learned 8 Research zone layouts 9625 | -7/Scraptown | Learned 16 Factory zone layouts 9625 | -7/Scraptown | Learned 12 Research zone layouts 9625 | -7/Scraptown | Learned 4 Access zone layouts 9625 | -7/Scraptown | Learned 8 Access zone layouts 9625 | -7/Scraptown | Learned 8 Upper Caves zone layouts 9625 | -7/Scraptown | Learned 12 Proximity Caves zone layouts 9625 | -7/Scraptown | Learned Factory emergency access door positions 9625 | -7/Scraptown | Learned location of 3 exits from Factory 9625 | -7/Scraptown | Learned location of 2 exits from Upper Caves 10107 | -7/Scraptown | Entered Factory 10107 | -5/Factory | Accompanied by 10 allies 10107 | -5/Factory | Evolved 10 slots: Propulsion x3, Utility x7 10108 | -5/Factory | Identified exit to Factory 10108 | -5/Factory | Identified exit to Upper Caves 10108 | -5/Factory | Identified exit to Extension 10240 | -5/Factory | Lost 7 allies 10305 | -5/Factory | Entered Upper Caves 10306 | -5/Upper Caves | Identified exit to Upper Caves 10338 | -5/Upper Caves | Attracted the attention of an 0b10 outpost 10352 | -5/Upper Caves | Learned Factory trap positions 10414 | -5/Upper Caves | Entered another Upper Caves area 10419 | -5/Upper Caves | Encountered a Warlord checkpoint 10512 | -5/Upper Caves | Prototype Device suddenly appears! 10512 | -5/Upper Caves | Found Prototype Device 10512 | -5/Upper Caves | Identified Amulet of Y3-NDR 10515 | -5/Upper Caves | Learned Factory stockpile data 10540 | -5/Upper Caves | Attracted the attention of an 0b10 checkpoint 10557 | -5/Upper Caves | Lost 3 parts (2n1w) 10572 | -5/Upper Caves | Core integrity fell below 50% 10575 | -5/Upper Caves | Discovered new exit (range 15) 10582 | -5/Upper Caves | Entered Warlord 10583 | -5/Warlord | Identified exit to Proximity Caves 10675 | -5/Warlord | Build established: Mutant 11012 | -5/Warlord | Warlord's base attacked by MAIN.C 11035 | -5/Warlord | Found Prototype Energy Gun 11035 | -5/Warlord | Identified Vortex Shotgun 11105 | -5/Warlord | Rebuked by Warlord 11349 | -5/Warlord | Spotted Striker 11352 | -5/Warlord | P-80 Master assimilated allied W9-EG5(m) 11362 | -5/Warlord | Warlord forces counterattacked 11372 | -5/Warlord | Spotted OO-G6T(B) 11389 | -5/Warlord | Spotted SK-GCN(g) 11425 | -5/Warlord | Lost 14 allies 11441 | -5/Warlord | System corruption reached 10% 11480 | -5/Warlord | Lost 7 allies 11687 | -5/Warlord | Warlord base infiltrated, sounded retreat 11708 | -5/Warlord | Build established: Scavenger-Mutant 11712 | -5/Warlord | Opened side exit 11826 | -5/Warlord | Spotted Executioner 11909 | -5/Warlord | Entered Proximity Caves 11929 | -4/Proximity Caves | Learned location of Testing (-2) 12008 | -4/Proximity Caves | Joined by bewildered Wizard 12013 | -4/Proximity Caves | Joined by bewildered Wizard 12023 | -4/Proximity Caves | Joined by bewildered Wizard 12023 | -4/Proximity Caves | Joined by bewildered Wizard 12101 | -4/Proximity Caves | Learned Research stockpile data 12183 | -4/Proximity Caves | Spotter reported a threat 12237 | -4/Proximity Caves | Spotter reported a threat 12304 | -4/Proximity Caves | Discovered exit to Factory (range 5) 12315 | -4/Proximity Caves | Entered Factory 12315 | -4/Factory | Accompanied by 6 allies 12315 | -4/Factory | Evolved 2 slots: Power x1, Utility x1 12316 | -4/Factory | Identified exit to Research 12317 | -4/Factory | Loaded intel: 99 trap records 12482 | -4/Factory | Spotted B-86 Titan 12504 | -4/Factory | Joined by bewildered Wizard 12683 | -4/Factory | Discovered exit to Research (range 7) 12724 | -4/Factory | Joined by bewildered Wizard 12733 | -4/Factory | System corruption reached 10% 12791 | -4/Factory | Joined by bewildered Wizard 12792 | -4/Factory | Joined by bewildered Wizard 12793 | -4/Factory | Joined by bewildered Wizard 12824 | -4/Factory | Garrison activated, responded to threat 12902 | -4/Factory | Joined by bewildered Wizard 13113 | -4/Factory | Entered Research 13113 | -3/Research | Accompanied by 6 allies 13113 | -3/Research | Evolved 2 slots: Utility x2 13114 | -3/Research | Identified exit to Research 13116 | -3/Research | Loaded intel: 43 interactive machine locations 13167 | -3/Research | Joined by bewildered Wizard 13167 | -3/Research | Joined by bewildered Wizard 13190 | -3/Research | Lost 7 allies 13205 | -3/Research | Joined by bewildered Wizard 13206 | -3/Research | Joined by bewildered Wizard 13400 | -3/Research | Joined by bewildered Wizard 13401 | -3/Research | Lost 3 allies 13523 | -3/Research | Discovered exit to Research (range 10) 13580 | -3/Research | Discovered new exit (range 14) 13649 | -3/Research | Entered Quarantine 13809 | -3/Quarantine | Scanned by Researcher 14002 | -3/Quarantine | Lost 7 parts (1p3n2u1w) 14091 | -3/Quarantine | Cryocooling Duct disabled 14106 | -3/Quarantine | Ambient heat levels rising (+20) 14106 | -3/Quarantine | Non-combat units ordered to evacuate 14196 | -3/Quarantine | Lost 7 parts (2p2n3u) 14263 | -3/Quarantine | Core integrity fell below 50% 14306 | -3/Quarantine | Spotted Alpha 7 14324 | -3/Quarantine | Found Alien Artifact 14325 | -3/Quarantine | Identified Core Reset Matrix 14325 | -3/Quarantine | Used Core Reset Matrix 14329 | -3/Quarantine | Detected hypermatrix surge 14329 | -3/Quarantine | Sensed 16 artifacts in vicinity 14339 | -3/Quarantine | Discovered exit to Research (range 11) 14345 | -3/Quarantine | Found Subatomic Replicator 14356 | -3/Quarantine | Found Sigix Terminator 14361 | -3/Quarantine | Entered Research 14361 | -2/Research | Evolved 2 slots: Propulsion x2 14533 | -2/Research | Identified exit to Testing 14564 | -2/Research | Build established: Hacker-Sprinter 14630 | -2/Research | Spotted B-90 Cyclops 14674 | -2/Research | Core integrity fell below 50% 14697 | -2/Research | Emitted hypermatrix ping 14702 | -2/Research | Assembled emerged from beneath the floor 14705 | -2/Research | Discovered new exit (range 4) 14708 | -2/Research | Entered Access 14708 | -1/Access | Evolved 2 slots: Propulsion x1, Utility x1 14728 | -1/Access | Lost 19 parts (3p10n6u) 14907 | -1/Access | Spotted B-99 Colossus 14976 | -1/Access | Garrison activated, responded to threat 14979 | -1/Access | Core integrity fell below 50% 14983 | -1/Access | System corruption reached 10% 14984 | -1/Access | Emitted hypermatrix ping 14986 | -1/Access | Core integrity fell below 20% 14989 | -1/Access | Assembled emerged from beneath the floor 14994 | -1/Access | Assembled emerged from beneath the floor 15022 | -1/Access | Lost 8 parts (1n6u1w) 15023 | -1/Access | Spotted B-99 Colossus 15037 | -1/Access | Lost 8 allies 15042 | -1/Access | Destroyed by P-80 Master with Gamma Rifle Last Messages --------------- ALERT: Construction progress impeded, dispatching reinforcements to local area. Detected hypermatrix ping. O-32 Director system corrupted by crushing effect. O-32 Director uses terminal to summon reinforcements. ALERT: Hostiles spotted, dispatching reinforcements to Terminal A018. O-32 Director locks terminal. Slug penetrates as-40809. System corrupted: Substantial component data lost. Triggered Alarm Trap. An alarm sounds. ALERT: Alarm triggered, dispatching investigation squad. ALERT: Potential suspicious activity detected, Programmers report to Access Zone 5C. HFZY E,O:TW9FPFN>IZE J Map ----- +----------------------------------------------------+ | ?????????????????????????????????????????????????? | | ?????????????????????????????????????????????????? | | ?????????????????????????????????????????????????? | | ??????????????????????????????????????????????? | | "?????????????????????????????????????????????? | | "???????????##########????????????????????????? | | ""??????????# #????????????????????????? | | F??????????# #????????????????????????? | | ""??????????# #????????????????????????? | | "???????????# #????????????????????????? | | #???????????# #????????????????????????? | | #???????????# #????????????????????????? | | #???????????? ]! #????????????????????????? | | #??????????????! #????????????????????????? | | #???????????????? #????????????????????????? | | ###################+####??????????????????????? | | ! #??????????????????????? | | ##########?????????????? | | ^ ????????????? | | ????????????? | | ????????????? | | * ????????????? | | ????????????? | | "" ###+#######/????????????? | | """" # #?????????????????? | | """" ! @ #?????????????????? | | """" ! ####### #?????????????????? | | """" ########?????? [ #?????????????????? | | ""?" #?????????????? #?????????????????? | | "? #?????????????? #?????????????????? | | "? #??????????????? #?????????????????? | | ?? ??????????????? #?????????????????? | | ???? ??????????????????? #?????????????????? | | ????????????????????????? #?????????????????? | | ?????????????????????????????? #?????????????????? | | ?????????????????????????????? #?????????????????? | | ???????????????????????????????#?????????????????? | | ?????????????????????????????????????????????????? | | ?????????????????????????????????????????????????? | | ?????????????????????????????????????????????????? | | ?????????????????????????????????????????????????? | | ?????????????????????????????????????????????????? | | ?????????????????????????????????????????????????? | | ?????????????????????????????????????????????????? | | ?????????????????????????????????????????????????? | | ?????????????????????????????????????????????????? | | ?????????????????????????????????????????????????? | | ?????????????????????????????????????????????????? | | ?????????????????????????????????????????????????? | | ?????????????????????????????????????????????????? | +----------------------------------------------------+ Best States ------------- Heat Dissipation 71 Energy Generation 37 Energy Capacity 550 Matter Stores 300 Matter Capacity 300 Sight Range 16 Robot Scan Range 18 Terrain Scan Density 1210 Armor Coverage 1105 Weapon Shielding 66 Evasion (%) 65 Melee Accuracy 32 Armor Integrity Analysis 40 Recoil Reduction 5 Offensive Hacking 50 Defensive Hacking 12 Item Schematics ----------------- None Robot Schematics ------------------ None Fabricated ------------ Nothing Repaired ---------- Nothing Alien Tech Used ----------------- Core Reset Matrix Achievements -------------- Beloved Challenges ------------ None Game ------ Seed TechSalvagingAutobeam Manual? 0 Play Time 02:17:29 Cumulative 205.3 hours Start 2025.09.12 @ 22:13:46 End 2025.09.13 @ 16:30:37 Sessions 7 Manual Loads 0 Difficulty Rogue Special Mode None Game No. 177 Rogue 177 Adventurer 0 Explorer 0 Win Type - Total 10 Types 4/0/2/2/1/0/0/0/0/1 Lore% 90 Gallery% 84 Achievement% 67 Wizard Run 0 Options --------- Layout 1 ASCII 0 Keyboard 0 Movement Numpad Keybinds 0 Fullscreen 1 Font 24/Proggy Map View 50x35 Zoom Use 0% Tactical HUD 0 Map Filters NONE Filters NONE Steam 1 RUN: acf0b22e-5462-4b8d-9ab3-3d579e586ea1